fUSD/lending_fUSD_20250117
["ID","MTS","AMOUNT","RATE_DAILY","PERIOD"]
[349299645,1737106254095,-500.0,0.00024999,2]
[349299646,1737106254105,-500.0,0.00024999,2]
[349299647,1737106254115,-500.0,0.00024999,2]
[349299648,1737106254124,-500.0,0.00024999,2]
[349299649,1737106254135,-500.0,0.00024999,2]
[349299650,1737106254145,-556.97,0.00024999,2]
[349299651,1737106254155,-500.0,0.00024999,2]
[349299652,1737106254165,-500.0,0.00024999,2]
[349299653,1737106254175,-500.0,0.00024999,2]
[349299654,1737106254184,-315.32432754,0.00024999,2]
[349299655,1737106254194,-500.0,0.00024999,2]
[349299656,1737106254204,-500.0,0.00024999,2]
[349299657,1737106254214,-500.0,0.00024999,2]
[349299658,1737106254224,-500.0,0.00024999,2]
[349299659,1737106254235,-500.0,0.00024999,2]
[349299660,1737106254245,-500.0,0.00024999,2]
[349299661,1737106254255,-500.0,0.00024999,2]
[349299662,1737106254264,-500.0,0.00024999,2]
[349299663,1737106254273,-487.82,0.00024999,2]
[349299664,1737106254283,-500.0,0.00024999,2]
[349299665,1737106254292,-287.49698142,0.00024999,2]
[349299666,1737106254301,-500.0,0.00024999,2]
[349299667,1737106254310,-500.0,0.00024999,2]
[349299668,1737106254319,-501.67156521,0.00024999,2]
[349299669,1737106254328,-500.0,0.00024999,2]
[349299670,1737106254338,-500.0,0.00024999,2]
[349299671,1737106254348,-500.0,0.00024999,2]
[349299672,1737106254358,-500.0,0.00024999,2]
[349299673,1737106254367,-500.0,0.00024999,2]
[349299674,1737106254376,-500.0,0.00024999,2]
[349299675,1737106254386,-500.0,0.00024999,2]
[349299676,1737106254396,-500.0,0.00024999,2]
[349299677,1737106254406,-500.0,0.00024999,2]
[349299678,1737106254416,-500.0,0.00024999,2]
[349299679,1737106254426,-500.0,0.00024999,2]
[349299680,1737106254437,-500.0,0.00024999,2]
[349299681,1737106254447,-295.5398116,0.00024999,2]
[349299682,1737106254462,-204.4601884,0.00024999,2]
[349299683,1737106254471,-500.0,0.00024999,2]
[349299684,1737106254480,-500.0,0.00024999,2]
[349299685,1737106254489,-500.0,0.00024999,2]
[349299686,1737106254499,-500.0,0.00024999,2]
[349299687,1737106254512,-500.0,0.00024999,2]
[349299688,1737106254523,-500.0,0.00024999,2]
[349299689,1737106254535,-500.0,0.00024999,2]
[349299690,1737106254545,-500.0,0.00024999,2]
[349299691,1737106254555,-500.0,0.00024999,2]
[349299692,1737106254564,-307.02956393,0.00024999,2]
[349299693,1737106254574,-502.93145544,0.00024999,2]
[349299694,1737106254731,-500.0,0.00024999,2]
[349299695,1737106254743,-500.0,0.00024999,2]
[349299696,1737106254753,-500.0,0.00024999,2]
[349299697,1737106254762,-500.0,0.00024999,2]
[349299698,1737106254770,-500.0,0.00024999,2]
[349299699,1737106254780,-282.06110153,0.00024999,2]
[349299700,1737106254792,-217.93889847,0.00024999,2]
[349299701,1737106254802,-78.50200153,0.00024999,2]
[349299702,1737106254813,-1709.10961644,0.00024999,2]
[349299703,1737106254829,-490.52644203,0.00024999,2]
[349299704,1737106254838,-500.0,0.00024999,2]
[349299705,1737106254847,-500.0,0.00024999,2]
[349299706,1737106254856,-440.84681796,0.00024999,2]
[349299707,1737106254999,-500.0,0.00024899,2]
[349299708,1737106255008,-500.0,0.00024899,2]
[349299709,1737106255018,-500.0,0.00024996,2]
[349299710,1737106255029,-500.0,0.00024997,2]
[349299711,1737106255039,-500.0,0.00024997,2]
[349299712,1737106255049,-500.0,0.00024997,2]
[349299713,1737106255059,-503.5652404,0.00024998,2]
[349299714,1737106255068,-217.95796902,0.00024998,2]
[349299715,1737106255077,-500.0,0.00024998,2]
[349299716,1737106255086,-59.15318204,0.00024999,2]
[349299717,1737106255095,-500.0,0.00024999,2]
[349299718,1737106255106,-500.0,0.00024999,2]
[349299719,1737106255116,-442.3,0.00024999,2]
[349299720,1737106255125,-500.0,0.00024999,2]
[349299721,1737106255134,-500.0,0.00024999,2]
[349299722,1737106255144,-500.0,0.00024999,2]
[349299723,1737106255153,-500.0,0.00024999,2]
[349299724,1737106255163,-493.56737172,0.00024999,2]
[349299725,1737106255172,-500.0,0.00024999,2]
[349299726,1737106255181,-500.0,0.00024999,2]
[349299727,1737106255190,-500.0,0.00024999,2]
[349299728,1737106255200,-500.0,0.00024999,2]
[349299729,1737106255209,-500.0,0.00024999,2]
[349299730,1737106255222,-500.0,0.00024999,2]
[349299731,1737106255231,-500.0,0.00024999,2]
[349299732,1737106255241,-500.0,0.00024999,2]
[349299733,1737106255250,-500.0,0.00024999,2]
[349299734,1737106255260,-500.0,0.00024999,2]
[349299735,1737106255269,-500.0,0.00024999,2]
[349299736,1737106255279,-500.0,0.00024999,2]
[349299737,1737106255289,-500.0,0.00024999,2]
[349299738,1737106255298,-500.0,0.00024999,2]
[349299739,1737106255307,-168.26303724,0.00024999,2]
[349299740,1737106255317,-500.0,0.00024999,2]
[349299741,1737106255326,-500.0,0.00024999,2]
[349299742,1737106255336,-500.0,0.00024999,2]
[349299743,1737106255345,-500.0,0.00024999,2]
[349299744,1737106255355,-376.95763993,0.00024999,2]
[349299745,1737106255367,-123.04236007,0.00024999,2]
[349299746,1737106255377,-500.0,0.00024999,2]
[349299747,1737106255388,-500.0,0.00024999,2]
[349299748,1737106255397,-500.0,0.00024999,2]
[349299749,1737106255407,-500.0,0.00024999,2]
[349299750,1737106255416,-500.0,0.00024999,2]
[349299751,1737106255425,-500.0,0.00024999,2]
[349299752,1737106255436,-500.0,0.00024999,2]
[349299753,1737106255445,-500.0,0.00024999,2]
[349299754,1737106255455,-500.0,0.00024999,2]
[349299755,1737106255464,-230.6523521,0.00024999,2]
[349299756,1737106255476,-269.3476479,0.00024999,2]
[349299757,1737106255486,-500.0,0.00024999,2]
[349299758,1737106255495,-500.0,0.00024999,2]
[349299759,1737106255505,-500.0,0.00024999,2]
[349299760,1737106255514,-500.0,0.00024999,2]
[349299761,1737106255524,-500.0,0.00024999,2]
[349299762,1737106255533,-500.0,0.00024999,2]
[349299763,1737106255542,-564.8,0.00024999,2]
[349299764,1737106255552,-500.0,0.00024999,2]
[349299765,1737106255561,-500.0,0.00024999,2]
[349299766,1737106255571,-500.0,0.00024999,2]
[349299767,1737106255580,-500.0,0.00024999,2]
[349299768,1737106255590,-500.0,0.00024999,2]
[349299769,1737106255599,-500.0,0.00024999,2]
[349299770,1737106255609,-500.0,0.00024999,2]
[349299771,1737106255618,-500.0,0.00024999,2]
[349299772,1737106255627,-500.0,0.00024999,2]
[349299773,1737106255638,-500.0,0.00024999,2]
[349299774,1737106255647,-500.0,0.00024999,2]
[349299775,1737106255657,-428.84,0.00024999,2]
[349299776,1737106255666,-500.0,0.00024999,2]
[349299777,1737106255675,-500.0,0.00024999,2]
[349299778,1737106255685,-501.79558602,0.00024999,2]
[349299779,1737106255695,-500.0,0.00024999,2]
[349299780,1737106255704,-500.0,0.00024999,2]
[349299781,1737106255714,-500.0,0.00024999,2]
[349299782,1737106255723,-500.0,0.00024999,2]
[349299783,1737106255732,-500.0,0.00024999,2]
[349299784,1737106255743,-501.40693092,0.00024999,2]
[349299785,1737106255754,-500.0,0.00024999,2]
[349299786,1737106255763,-500.0,0.00024999,2]
[349299787,1737106255772,-344.04,0.00024999,2]
[349299788,1737106255783,-500.80485034,0.00024999,2]
[349299789,1737106255793,-500.0,0.00024999,2]
[349299790,1737106255802,-500.0,0.00024999,2]
[349299791,1737106255811,-500.0,0.00024999,2]
[349299792,1737106255821,-500.0,0.00024999,2]
[349299793,1737106255830,-500.0,0.00024999,2]
[349299794,1737106255840,-500.0,0.00024999,2]
[349299795,1737106255849,-500.0,0.00024999,2]
[349299796,1737106255858,-500.0,0.00024999,2]
[349299797,1737106255868,-500.0,0.00024999,2]
[349299798,1737106255877,-461.36,0.00024999,2]
[349299799,1737106255887,-500.0,0.00024999,2]
[349299800,1737106255897,-500.0,0.00024999,2]
[349299801,1737106255906,-500.0,0.00024999,2]
[349299802,1737106255916,-500.0,0.00024999,2]
[349299803,1737106255928,-500.0,0.00024999,2]
[349299804,1737106255937,-394.08,0.00024999,2]
[349299805,1737106255946,-500.0,0.00024999,2]
[349299806,1737106255956,-500.0,0.00024999,2]
[349299807,1737106255966,-500.0,0.00024999,2]
[349299808,1737106255975,-500.0,0.00024999,2]
[349299809,1737106255984,-500.0,0.00024999,2]
[349299810,1737106255993,-507.77,0.00024999,2]
[349299811,1737106256003,-500.0,0.00024999,2]
[349299812,1737106256012,-500.0,0.00024999,2]
[349299813,1737106256022,-500.0,0.00024999,2]
[349299814,1737106256031,-432.94,0.00024999,2]
[349299815,1737106256040,-500.0,0.00024999,2]
[349299816,1737106256050,-500.0,0.00024999,2]
[349299817,1737106256059,-500.0,0.00024999,2]
[349299818,1737106256068,-500.0,0.00024999,2]
[349299819,1737106256078,-500.0,0.00024999,2]
[349299820,1737106256087,-500.0,0.00024999,2]
[349299821,1737106256096,-500.0,0.00024999,2]
[349299822,1737106256106,-532.6,0.00024999,2]
[349299823,1737106256115,-500.0,0.00024999,2]
[349299824,1737106256125,-500.0,0.00024999,2]
[349299825,1737106256135,-500.0,0.00024999,2]
[349299826,1737106256147,-500.0,0.00024999,2]
[349299827,1737106256157,-500.0,0.00024999,2]
[349299828,1737106256167,-500.0,0.00024999,2]
[349299829,1737106256177,-500.0,0.00024999,2]
[349299830,1737106256186,-500.0,0.00024999,2]
[349299831,1737106256199,-500.0,0.00024999,2]
[349299832,1737106256210,-500.0,0.00024999,2]
[349299833,1737106256220,-500.0,0.00024999,2]
[349299834,1737106256229,-512.92,0.00024999,2]
[349299835,1737106256239,-500.0,0.00024999,2]
[349299836,1737106256248,-500.0,0.00024999,2]
[349299837,1737106256257,-500.0,0.00024999,2]
[349299838,1737106256267,-500.0,0.00024999,2]
[349299839,1737106256276,-500.0,0.00024999,2]
[349299840,1737106256287,-500.0,0.00024999,2]
[349299841,1737106256301,-500.0,0.00024999,2]
[349299842,1737106256310,-500.0,0.00024999,2]
[349299843,1737106256320,-500.0,0.00024999,2]
[349299844,1737106256330,-500.0,0.00024999,2]
[349299845,1737106256340,-500.0,0.00024999,2]
[349299846,1737106256349,-253.65,0.00024999,2]
[349299847,1737106256359,-500.0,0.00024999,2]
[349299848,1737106256368,-500.0,0.00024999,2]
[349299849,1737106256377,-500.0,0.00024999,2]
[349299850,1737106256386,-500.0,0.00024999,2]
[349299851,1737106256399,-346.03655616,0.00024999,2]
[349299852,1737106256409,-500.0,0.00024999,2]
[349299853,1737106256418,-504.65284736,0.00024999,2]
[349299854,1737106256427,-500.0,0.00024999,2]
[349299855,1737106256439,-500.0,0.00024999,2]
[349299856,1737106256448,-500.0,0.00024999,2]
[349299857,1737106256460,-373.37474946,0.00024999,2]
[349299858,1737106256470,-506.11508628,0.00024999,2]
[349299859,1737106256480,-500.0,0.00024999,2]
[349299860,1737106256489,-500.0,0.00024999,2]
[349299861,1737106256498,-500.0,0.00024999,2]
[349299862,1737106256508,-500.0,0.00024999,2]
[349299863,1737106256517,-500.0,0.00024999,2]
[349299864,1737106256527,-500.0,0.00024999,2]
[349299865,1737106256536,-500.0,0.00024999,2]
[349299866,1737106256545,-500.0,0.00024999,2]
[349299867,1737106256554,-500.0,0.00024999,2]
[349299868,1737106256563,-206.27812766,0.00024999,2]
[349299869,1737106256572,-500.0,0.00024999,2]
[349299870,1737106256581,-500.0,0.00024999,2]
[349299871,1737106256590,-500.0,0.00024999,2]
[349299872,1737106256602,-500.0,0.00024999,2]
[349299873,1737106256611,-500.0,0.00024999,2]
[349299874,1737106256620,-500.0,0.00024999,2]
[349299875,1737106256629,-548.36414727,0.00024999,2]
[349299876,1737106256638,-500.0,0.00024999,2]
[349299877,1737106256650,-500.0,0.00024999,2]
[349299878,1737106256660,-500.0,0.00024999,2]
[349299879,1737106256669,-500.0,0.00024999,2]
[349299880,1737106256678,-500.0,0.00024999,2]
[349299881,1737106256687,-500.0,0.00024999,2]
[349299882,1737106256697,-500.0,0.00024999,2]
[349299883,1737106256706,-500.0,0.00024999,2]
[349299884,1737106256715,-500.0,0.00024999,2]
[349299885,1737106256726,-500.0,0.00024999,2]
[349299886,1737106256738,-500.0,0.00024999,2]
[349299887,1737106256752,-500.0,0.00024999,2]
[349299888,1737106256762,-500.0,0.00024999,2]
[349299889,1737106256771,-500.0,0.00024999,2]
[349299890,1737106256780,-500.0,0.00024999,2]
[349299891,1737106256792,-527.52033851,0.00024999,2]
[349299892,1737106256801,-500.0,0.00024999,2]
[349299893,1737106256811,-500.0,0.00024999,2]
[349299894,1737106256821,-500.0,0.00024999,2]
[349299895,1737106256831,-500.0,0.00024999,2]
[349299896,1737106256843,-505.71429642,0.00024999,2]
[349299897,1737106256853,-505.10373638,0.00024999,2]
[349299898,1737106256862,-500.0,0.00024999,2]
[349299899,1737106256871,-500.0,0.00024999,2]
[349299900,1737106256881,-531.3,0.00024999,2]
[349299901,1737106256892,-500.0,0.00024999,2]
[349299902,1737106256902,-500.0,0.00024999,2]
[349299903,1737106256911,-500.0,0.00024999,2]
[349299904,1737106256920,-500.0,0.00024999,2]
[349299905,1737106256930,-500.0,0.00024999,2]
[349299906,1737106256939,-500.0,0.00024999,2]
[349299907,1737106256949,-500.0,0.00024999,2]
[349299908,1737106256957,-517.89678936,0.00024999,2]
[349299909,1737106256967,-500.0,0.00024999,2]
[349299910,1737106256976,-631.06,0.00024999,2]
[349299911,1737106256985,-500.0,0.00024999,2]
[349299912,1737106256994,-500.0,0.00024999,2]
[349299913,1737106257004,-500.0,0.00024999,2]
[349299914,1737106257013,-337.88734166,0.00024999,2]
[349299915,1737106257023,-542.3171792,0.00024999,2]
[349299916,1737106257033,-373.22,0.00024999,2]
[349299917,1737106257043,-693700.68697168,0.00025,30]
[349299918,1737106257053,-201.35,0.00025,30]
[349299919,1737106257063,-157.48650268,0.00025,120]
[349299920,1737106257073,-2000.0,0.00025,2]
[349299921,1737106257082,-151.0,0.00025,7]
[349299922,1737106257092,-151.0,0.00025,7]
[349299923,1737106257101,-151.0,0.00025,7]
[349299924,1737106257110,-200.67480553,0.00025,2]
[349299925,1737106257120,-166.048568,0.00025,7]
[349299926,1737106257130,-143382.33918836,0.00025,3]
[349299927,1737106257143,-692.25197486,0.00025,3]
[349299928,1737106257152,-150.0,0.00025,14]
[349299929,1737106257161,-500.0,0.00025,2]
[349299930,1737106257170,-500.0,0.00025,2]
[349299931,1737106257179,-500.0,0.00025,2]
[349299932,1737106257189,-510.0,0.00025,2]
[349299933,1737106257201,-150.0,0.00025,14]
[349299934,1737106257211,-1000.0,0.00025,9]
[349299935,1737106257222,-1000.0,0.00025,9]
[349299936,1737106257232,-1000.0,0.00025,9]
[349299937,1737106257242,-1000.0,0.00025,9]
[349299938,1737106257251,-1000.0,0.00025,2]
[349299939,1737106257261,-1000.0,0.00025,9]
[349299940,1737106257270,-947.9299,0.00025,2]
[349299941,1737106257280,-1000.0,0.00025,9]
[349299942,1737106257289,-1000.0,0.00025,9]
[349299943,1737106257298,-1000.0,0.00025,9]
[349299944,1737106257307,-1000.0,0.00025,9]
[349299945,1737106257316,-1000.0,0.00025,9]
[349299946,1737106257325,-244.84928026,0.00025,14]
[349299947,1737106257334,-150.0,0.00025,14]
[349299948,1737106257344,-231.0,0.00025,2]
[349299949,1737106257353,-534.5344,0.00025,2]
[349299950,1737106257362,-365.0,0.00025,2]
[349299951,1737106257371,-1497.9841,0.00025,2]
[349299952,1737106257380,-860.00801288,0.00025,14]
[349299953,1737106257390,-150.0,0.00025,2]
[349299954,1737106257402,-150.0,0.00025,14]
[349299955,1737106257531,-150.14937493,0.00025,14]
[349299956,1737106257542,-245.38080966,0.00025,2]
[349299957,1737106257552,-500.0,0.00025,14]
[349299958,1737106257561,-150.0,0.00025,2]
[349299959,1737106257571,-785.0,0.00025,14]
[349299960,1737106257580,-3594.0195,0.0002501,2]
[349299961,1737106257592,-150.0,0.00025027,14]
[349299962,1737106257603,-150.0,0.00025027,14]
[349299963,1737106257615,-150.0,0.00025027,14]
[349299964,1737106257626,-650.0,0.00025027,14]
[349299965,1737106257637,-785.0,0.00025027,14]
[349299966,1737106257651,-150.0,0.00025055,14]
[349299967,1737106257661,-200.553,0.00025055,14]
[349299968,1737106257671,-785.0,0.00025055,14]
[349299969,1737106257680,-150.0,0.00025082,14]
[349299970,1737106257690,-785.0,0.00025082,14]
[349299971,1737106257700,-222.64577163,0.0002511,14]
[349299972,1737106257711,-785.0,0.0002511,14]
[349299973,1737106257722,-785.0,0.00025137,14]
[349299974,1737106257731,-785.0,0.00025164,14]
[349299975,1737106257742,-785.0,0.00025192,14]
[349299976,1737106257753,-1000.0,0.000252,2]
[349299977,1737106257762,-2000.0,0.00025205,30]
[349299978,1737106257771,-785.0,0.00025219,14]
[349299979,1737106257782,-785.0,0.00025247,14]
[349299980,1737106257792,-785.0,0.00025274,14]
[349299981,1737106257802,-785.0,0.00025301,14]
[349299982,1737106257814,-785.0,0.00025329,14]
[349299983,1737106257827,-1660.64,0.00025342,2]
[349299984,1737106257838,-500.0,0.00025342,2]
[349299985,1737106257848,-500.0,0.00025342,2]
[349299986,1737106257857,-438.14,0.00025342,2]
[349299987,1737106257866,-438.14,0.00025342,2]
[349299988,1737106257876,-785.0,0.00025356,14]
[349299989,1737106257886,-785.0,0.00025384,14]
[349299990,1737106257897,-785.0,0.00025411,14]
[349299991,1737106257905,-204.0,0.0002542,2]
[349299992,1737106257914,-785.0,0.00025438,14]
[349299993,1737106257922,-500.0,0.00025453,2]
[349299994,1737106257931,-296.03483113,0.00025453,2]
[349299995,1737106257939,-300.0,0.00025454,2]
[349299996,1737106257949,-785.0,0.00025466,14]
[349299997,1737106257959,-2000.0,0.00025479,30]
[349299998,1737106257967,-785.0,0.00025493,14]
[349299999,1737106257978,-1000.0,0.00025521,2]
[349300000,1737106257987,-1000.0,0.00025521,2]
[349300001,1737106257997,-802.51399666,0.00025521,14]
[349300002,1737106258006,-200.0,0.00025544,120]
[349300003,1737106258016,-500.0,0.00025593,120]
[349300004,1737106258026,-168.99,0.00025655,3]
[349300005,1737106258037,-500.0,0.0002569,120]
[349300006,1737106258046,-1862.0,0.00025714,2]
[349300007,1737106258056,-907.0,0.00025714,2]
[349300008,1737106258066,-2945.0,0.00025714,2]
[349300009,1737106258075,-1260.0,0.00025714,2]
[349300010,1737106258084,-820.0,0.00025714,2]
[349300011,1737106258093,-537.0,0.00025714,2]
[349300012,1737106258102,-3981.0,0.00025714,2]
[349300013,1737106258112,-1105.0,0.00025714,2]
[349300014,1737106258122,-3899.0,0.00025714,2]
[349300015,1737106258132,-151.0,0.00025714,2]
[349300016,1737106258144,-2017.0,0.00025714,2]
[349300017,1737106258155,-1268.0,0.00025714,2]
[349300018,1737106258164,-153.554,0.00025714,2]
[349300019,1737106258174,-296.446,0.00025714,2]
[349300020,1737106258183,-320.66,0.0002574,2]
[349300021,1737106258192,-2000.0,0.00025753,30]
[349300022,1737106258202,-239.26,0.00025753,2]
[349300023,1737106258212,-240.2,0.00025753,2]
[349300024,1737106258221,-150.0,0.00025753,2]
[349300025,1737106258230,-402.15,0.00025753,2]
[349300026,1737106258240,-150.0,0.00025753,2]
[349300027,1737106258250,-301.5,0.00025753,2]
[349300028,1737106258259,-150.0,0.00025753,2]
[349300029,1737106258268,-150.0,0.00025753,2]
[349300030,1737106258278,-2278.13806,0.0002587,2]
[349300031,1737106258287,-2000.0,0.00026027,30]
[349300032,1737106258297,-204.0,0.0002609,2]
[349300033,1737106258306,-1058.0,0.00026183,2]
[349300034,1737106258316,-150.0,0.00026214,2]
[349300035,1737106258325,-150.0,0.00026214,2]
[349300036,1737106258335,-150.792,0.00026214,2]
[349300037,1737106258344,-150.0,0.00026214,2]
[349300038,1737106258354,-150.0,0.00026214,2]
[349300039,1737106258363,-150.0,0.00026214,2]
[349300040,1737106258372,-150.0,0.00026214,2]
[349300041,1737106258381,-150.0,0.00026214,2]
[349300042,1737106258394,-150.0,0.00026214,2]
[349300043,1737106258404,-150.0,0.00026214,2]
[349300044,1737106258413,-150.0,0.00026214,2]
[349300045,1737106258422,-2000.0,0.00026301,30]
[349300046,1737106258432,-500.0,0.00026412,120]
[349300047,1737106258442,-906.77615066,0.00026522,2]
[349300048,1737106258452,-583.51692199,0.00026522,2]
[349300049,1737106258463,-221.0,0.0002654,2]
[349300050,1737106258472,-2000.0,0.00026575,30]
[349300051,1737106258482,-320.66,0.00026627,2]
[349300052,1737106258492,-829.66,0.00026642,120]
[349300053,1737106258501,-169.99,0.00026643,2]
[349300054,1737106258511,-1000.0,0.00026673,2]
[349300055,1737106258521,-763.8,0.00026694,2]
[349300056,1737106258530,-204.0,0.0002677,2]
[349300057,1737106258539,-200.0,0.00026778,120]
[349300058,1737106258549,-500.0,0.00026802,120]
[349300059,1737106258558,-300.0,0.00026824,2]
[349300060,1737106258567,-2000.0,0.00026849,30]
[349300061,1737106258576,-341.353396,0.00026849,2]
[349300062,1737106258586,-255.413782,0.00026849,2]
[349300063,1737106258595,-500.0,0.00026849,2]
[349300064,1737106258605,-500.0,0.00026849,2]
[349300065,1737106258614,-276.47,0.00026849,2]
[349300066,1737106258624,-1000.0,0.00026849,3]
[349300067,1737106258634,-1000.0,0.00026849,3]
[349300068,1737106258645,-1000.0,0.00026849,3]
[349300069,1737106258656,-1000.0,0.00026849,3]
[349300070,1737106258665,-1000.0,0.00026849,3]
[349300071,1737106258675,-1000.0,0.00026849,3]
[349300072,1737106258684,-1000.0,0.00026849,3]
[349300073,1737106258694,-1000.0,0.00026849,3]
[349300074,1737106258703,-1000.0,0.00026849,3]
[349300075,1737106258713,-1000.0,0.00026849,3]
[349300076,1737106258723,-1000.0,0.00026849,3]
[349300077,1737106258733,-1000.0,0.00026849,3]
[349300078,1737106258744,-1000.0,0.00026849,3]
[349300079,1737106258754,-1000.0,0.00026849,3]
[349300080,1737106258763,-1000.0,0.00026849,3]
[349300081,1737106258773,-1000.0,0.00026849,3]
[349300082,1737106258783,-1000.0,0.00026849,3]
[349300083,1737106258792,-1000.0,0.00026849,3]
[349300084,1737106258802,-1000.0,0.00026849,3]
[349300085,1737106258811,-1000.0,0.00026849,3]
[349300086,1737106258822,-1000.0,0.00026849,3]
[349300087,1737106258831,-1000.0,0.00026849,3]
[349300088,1737106258841,-1000.0,0.00026849,3]
[349300089,1737106258851,-1000.0,0.00026849,3]
[349300090,1737106258860,-1000.0,0.00026849,3]
[349300091,1737106258869,-1000.0,0.00026849,3]
[349300092,1737106258879,-1000.0,0.00026849,3]
[349300093,1737106258888,-1000.0,0.00026849,3]
[349300094,1737106258901,-1000.0,0.00026849,3]
[349300095,1737106258912,-1000.0,0.00026849,3]
[349300096,1737106258921,-1000.0,0.00026849,3]
[349300097,1737106258931,-1000.0,0.00026849,3]
[349300098,1737106258940,-1000.0,0.00026849,3]
[349300099,1737106258949,-1000.0,0.00026849,3]
[349300100,1737106258958,-1000.0,0.00026849,3]
[349300101,1737106258968,-1000.0,0.00026849,3]
[349300102,1737106258977,-1000.0,0.00026849,3]
[349300103,1737106258986,-1000.0,0.00026849,3]
[349300104,1737106258996,-1000.0,0.00026849,3]
[349300105,1737106259005,-1000.0,0.00026849,3]
[349300106,1737106259015,-1000.0,0.00026849,3]
[349300107,1737106259026,-1000.0,0.00026849,3]
[349300108,1737106259035,-1000.0,0.00026849,3]
[349300109,1737106259046,-759.0,0.00026849,3]
[349300110,1737106259057,-500.0,0.00026851,120]
[349300111,1737106259066,-500.0,0.00026873,2]
[349300112,1737106259075,-500.0,0.00027,15]
[349300113,1737106259085,-2000.0,0.00027,2]
[349300114,1737106259095,-550.0,0.00027,2]
[349300115,1737106259104,-2100.016156,0.0002701,2]
[349300116,1737106259114,-618.84,0.00027095,120]
[349300117,1737106259123,-2278.13806,0.0002712,2]
[349300118,1737106259133,-2000.0,0.00027123,30]
[349300119,1737106259145,-1787.96445075,0.00027181,2]
[349300120,1737106259154,-366.7606102,0.00027181,2]
[349300121,1737106259164,-430.63803471,0.00027185,2]
[349300122,1737106259173,-21127.77072025,0.00027186,2]
[349300123,1737106259183,-200.0,0.00027186,2]
[349300124,1737106259192,-8278.11123845,0.00027187,2]
[349300125,1737106259205,-1932.08337643,0.00027187,2]
[349300126,1737106259215,-623.40036655,0.00027187,2]
[349300127,1737106259224,-908.39161139,0.00027189,2]
[349300128,1737106259234,-200.0,0.00027189,2]
[349300129,1737106259243,-908.39161139,0.00027191,2]
[349300130,1737106259252,-200.0,0.00027193,2]
[349300131,1737106259262,-160067.44434628,0.00027193,2]
[349300132,1737106259271,-200.0,0.00027193,2]
[349300133,1737106259281,-339.46550561,0.00027193,2]
[349300134,1737106259290,-908.39161139,0.00027194,2]
[349300135,1737106259310,-8278.11123845,0.00027196,2]
[349300136,1737106259320,-200.0,0.00027197,2]
[349300137,1737106259329,-1507.53352727,0.00027197,2]
[349300138,1737106259339,-2927.14524389,0.00027199,2]
[349300139,1737106259349,-21127.77072025,0.000272,2]
[349300140,1737106259359,-2691.81768451,0.00027201,2]
[349300141,1737106259369,-8278.11123845,0.00027204,2]
[349300142,1737106259379,-2691.81768451,0.00027207,2]
[349300143,1737106259389,-330.09903553,0.00027209,2]
[349300144,1737106259402,-2927.14524389,0.00027209,2]